fUSD/lending_fUSD_20250513
["ID","MTS","AMOUNT","RATE_DAILY","PERIOD"]
[360944006,1747159869752,-542.34,0.00011506,2]
[360944007,1747159869762,-414.37,0.00011506,2]
[360944008,1747159869771,-400.0,0.00011506,2]
[360944009,1747159869781,-400.0,0.00011506,2]
[360944010,1747159869791,-449.97,0.00011506,2]
[360944011,1747159869801,-426.3,0.00011506,2]
[360944012,1747159869811,-400.0,0.00011506,2]
[360944013,1747159869820,-400.0,0.00011506,2]
[360944014,1747159869830,-400.0,0.00011506,2]
[360944015,1747159869839,-1871.8,0.00011506,2]
[360944016,1747159869848,-400.0,0.00011506,2]
[360944017,1747159869858,-475.68,0.00011506,2]
[360944018,1747159869868,-1359.59,0.00011506,2]
[360944019,1747159869877,-472.81,0.00011506,2]
[360944020,1747159869887,-400.0,0.00011506,2]
[360944021,1747159869896,-400.0,0.00011506,2]
[360944022,1747159869906,-539.11,0.00011506,2]
[360944023,1747159869915,-400.0,0.00011506,2]
[360944024,1747159869924,-400.0,0.00011506,2]
[360944025,1747159869933,-1207.49,0.00011506,2]
[360944026,1747159869943,-400.0,0.00011506,2]
[360944027,1747159869952,-400.0,0.00011506,2]
[360944028,1747159869962,-400.0,0.00011506,2]
[360944029,1747159869971,-400.0,0.00011506,2]
[360944030,1747159869980,-400.0,0.00011506,2]
[360944031,1747159869990,-400.0,0.00011506,2]
[360944032,1747159869999,-400.0,0.00011506,2]
[360944034,1747159870011,-400.0,0.00011506,2]
[360944036,1747159870023,-426.356592,0.00011506,2]
[360944038,1747159870033,-1135.76,0.00011506,2]
[360944040,1747159870042,-400.0,0.00011506,2]
[360944042,1747159870052,-1233.2,0.00011506,2]
[360944044,1747159870061,-657.57,0.00011506,2]
[360944046,1747159870070,-400.0,0.00011506,2]
[360944048,1747159870080,-303.74069092,0.00011506,2]
[360944050,1747159870090,-726.64,0.00011506,2]
[360944052,1747159870099,-400.0,0.00011506,2]
[360944054,1747159870109,-529.97,0.00011506,2]
[360944056,1747159870118,-1268.75,0.00011506,2]
[360944058,1747159870127,-400.0,0.00011506,2]
[360944060,1747159870138,-400.0,0.00011506,2]
[360944062,1747159870147,-608.84,0.00011506,2]
[360944064,1747159870158,-400.0,0.00011506,2]
[360944066,1747159870167,-457.91,0.00011506,2]
[360944076,1747159870253,-7701.691241,0.00011506,2]
[360944078,1747159870263,-416.03,0.00011506,2]
[360944079,1747159870272,-995.85,0.00011506,2]
[360944081,1747159870281,-291.987093,0.00011506,2]
[360944083,1747159870291,-736.58,0.00011506,2]
[360944085,1747159870300,-470.33,0.00011506,2]
[360944087,1747159870310,-400.0,0.00011506,2]
[360944089,1747159870319,-411.21,0.00011506,2]
[360944091,1747159870328,-553.17,0.00011506,2]
[360944093,1747159870338,-400.0,0.00011506,2]
[360944095,1747159870347,-2771.94,0.00011506,2]
[360944097,1747159870356,-400.0,0.00011506,2]
[360944099,1747159870366,-400.0,0.00011506,2]
[360944101,1747159870375,-400.0,0.00011506,2]
[360944103,1747159870384,-547.99,0.00011506,2]
[360944105,1747159870393,-2640.23,0.00011506,2]
[360944107,1747159870403,-400.0,0.00011506,2]
[360944109,1747159870412,-1191.42,0.00011506,2]
[360944111,1747159870421,-400.0,0.00011506,2]
[360944113,1747159870431,-400.0,0.00011506,2]
[360944115,1747159870440,-1798.17,0.00011506,2]
[360944116,1747159870449,-400.0,0.00011506,2]
[360944117,1747159870459,-3074.15,0.00011506,2]
[360944118,1747159870469,-1909.44,0.00011506,2]
[360944119,1747159870479,-1043.95,0.00011506,2]
[360944120,1747159870488,-400.0,0.00011506,2]
[360944121,1747159870497,-828.17,0.00011506,2]
[360944122,1747159870507,-2209.39,0.00011506,2]
[360944123,1747159870516,-400.0,0.00011506,2]
[360944124,1747159870525,-2113.1,0.00011506,2]
[360944125,1747159870534,-400.0,0.00011506,2]
[360944127,1747159870544,-1584.79,0.00011506,2]
[360944129,1747159870553,-894.32,0.00011506,2]
[360944131,1747159870562,-2266.23,0.00011506,2]
[360944133,1747159870571,-400.0,0.00011506,2]
[360944135,1747159870581,-403.62,0.00011506,2]
[360944137,1747159870590,-400.0,0.00011506,2]
[360944139,1747159870599,-400.0,0.00011506,2]
[360944140,1747159870608,-400.0,0.00011506,2]
[360944142,1747159870617,-1157.78,0.00011506,2]
[360944144,1747159870626,-448.59,0.00011506,2]
[360944146,1747159870635,-2334.67,0.00011506,2]
[360944148,1747159870644,-2166.25,0.00011506,2]
[360944150,1747159870654,-3592.14,0.00011506,2]
[360944152,1747159870663,-414.75,0.00011506,2]
[360944153,1747159870672,-576.56,0.00011506,2]
[360944154,1747159870682,-400.0,0.00011506,2]
[360944155,1747159870692,-400.0,0.00011506,2]
[360944156,1747159870702,-400.0,0.00011506,2]
[360944157,1747159870712,-400.0,0.00011506,2]
[360944158,1747159870721,-400.0,0.00011506,2]
[360944159,1747159870730,-529.13,0.00011506,2]
[360944160,1747159870741,-294.25547204,0.00011506,2]
[360944161,1747159870750,-500.19,0.00011506,2]
[360944162,1747159870760,-538.64,0.00011506,2]
[360944163,1747159870770,-323.64657278,0.00011506,2]
[360944164,1747159870779,-1411.28,0.00011506,2]
[360944165,1747159870788,-400.0,0.00011506,2]
[360944166,1747159870798,-534.86,0.00011506,2]
[360944167,1747159870808,-445.9,0.00011506,2]
[360944168,1747159870817,-706.58,0.00011506,2]
[360944169,1747159870827,-374.13,0.00011506,2]
[360944170,1747159870836,-1060.09,0.00011506,2]
[360944171,1747159870845,-440.85,0.00011506,2]
[360944172,1747159870854,-400.0,0.00011506,2]
[360944173,1747159870864,-285.16805298,0.00011506,2]
[360944174,1747159870873,-400.0,0.00011506,2]
[360944175,1747159870882,-400.0,0.00011506,2]
[360944176,1747159870891,-400.0,0.00011506,2]
[360944177,1747159870901,-785.11,0.00011506,2]
[360944178,1747159870910,-782.86,0.00011506,2]
[360944179,1747159870920,-508.12,0.00011506,2]
[360944180,1747159870930,-400.0,0.00011506,2]
[360944181,1747159870941,-792.31,0.00011506,2]
[360944182,1747159870951,-400.0,0.00011506,2]
[360944183,1747159870961,-507.26,0.00011506,2]
[360944184,1747159870971,-1373.03,0.00011506,2]
[360944185,1747159870981,-400.0,0.00011506,2]
[360944186,1747159870992,-400.0,0.00011506,2]
[360944187,1747159871002,-439.37,0.00011506,2]
[360944188,1747159871012,-400.0,0.00011506,2]
[360944189,1747159871022,-835.87,0.00011506,2]
[360944190,1747159871032,-400.0,0.00011506,2]
[360944191,1747159871042,-1203.29,0.00011506,2]
[360944192,1747159871052,-400.0,0.00011506,2]
[360944193,1747159871061,-705.65,0.00011506,2]
[360944194,1747159871071,-871.93,0.00011506,2]
[360944195,1747159871082,-511.42,0.00011506,2]
[360944196,1747159871092,-400.0,0.00011506,2]
[360944197,1747159871101,-161.54028429,0.00011506,2]
[360944198,1747159871111,-400.0,0.00011506,2]
[360944199,1747159871120,-786.26,0.00011506,2]
[360944200,1747159871130,-801.16,0.00011506,2]
[360944201,1747159871140,-458.61,0.00011506,2]
[360944202,1747159871151,-441.46,0.00011506,2]
[360944203,1747159871164,-1841.1,0.00011506,2]
[360944204,1747159871174,-522.01,0.00011506,2]
[360944205,1747159871184,-400.0,0.00011506,2]
[360944206,1747159871194,-952.91,0.00011506,2]
[360944207,1747159871205,-400.0,0.00011506,2]
[360944208,1747159871215,-589.31,0.00011506,2]
[360944209,1747159871224,-440.12,0.00011506,2]
[360944210,1747159871237,-689.79,0.00011506,2]
[360944211,1747159871249,-1040.35,0.00011506,2]
[360944212,1747159871259,-400.0,0.00011506,2]
[360944213,1747159871270,-400.0,0.00011506,2]
[360944214,1747159871282,-2832.85,0.00011506,2]
[360944215,1747159871292,-400.0,0.00011506,2]
[360944216,1747159871302,-722.75,0.00011506,2]
[360944217,1747159871312,-837.08,0.00011506,2]
[360944218,1747159871323,-418.45,0.00011506,2]
[360944219,1747159871333,-400.0,0.00011506,2]
[360944220,1747159871343,-1518.61,0.00011506,2]
[360944221,1747159871354,-538.57,0.00011506,2]
[360944222,1747159871365,-2035.72,0.00011506,2]
[360944223,1747159871375,-452.37,0.00011506,2]
[360944224,1747159871385,-400.0,0.00011506,2]
[360944225,1747159871395,-504.22,0.00011506,2]
[360944226,1747159871405,-699.02,0.00011506,2]
[360944227,1747159871415,-1636.63,0.00011506,2]
[360944228,1747159871425,-400.0,0.00011506,2]
[360944229,1747159871435,-494.98,0.00011506,2]
[360944230,1747159871445,-1883.29,0.00011506,2]
[360944231,1747159871456,-400.0,0.00011506,2]
[360944232,1747159871466,-2000.0,0.00011506,2]
[360944233,1747159871476,-400.0,0.00011506,2]
[360944234,1747159871486,-610.23,0.00011506,2]
[360944235,1747159871496,-768.25,0.00011506,2]
[360944236,1747159871506,-768.75,0.00011506,2]
[360944237,1747159871517,-1014.11,0.00011506,2]
[360944238,1747159871528,-400.0,0.00011506,2]
[360944239,1747159871539,-620.02,0.00011506,2]
[360944240,1747159871550,-1271.95,0.00011506,2]
[360944241,1747159871560,-400.0,0.00011506,2]
[360944242,1747159871571,-400.0,0.00011506,2]
[360944243,1747159871581,-756.59,0.00011506,2]
[360944244,1747159871592,-935.97,0.00011506,2]
[360944245,1747159871602,-400.0,0.00011506,2]
[360944246,1747159871612,-400.0,0.00011506,2]
[360944247,1747159871622,-1412.1,0.00011506,2]
[360944248,1747159871632,-539.94,0.00011506,2]
[360944249,1747159871643,-1632.7,0.00011506,2]
[360944250,1747159871652,-400.0,0.00011506,2]
[360944251,1747159871663,-871.79,0.00011506,2]
[360944252,1747159871674,-400.0,0.00011506,2]
[360944253,1747159871684,-451.47,0.00011506,2]
[360944254,1747159871694,-400.0,0.00011506,2]
[360944255,1747159871706,-560.27,0.00011506,2]
[360944256,1747159871717,-400.0,0.00011506,2]
[360944257,1747159871727,-2068.68,0.00011506,2]
[360944258,1747159871738,-400.0,0.00011506,2]
[360944259,1747159871748,-570.27,0.00011506,2]
[360944260,1747159871759,-444.85,0.00011506,2]
[360944261,1747159871770,-967.47,0.00011506,2]
[360944262,1747159871780,-400.0,0.00011506,2]
[360944263,1747159871791,-669.93,0.00011506,2]
[360944264,1747159871801,-1036.32,0.00011506,2]
[360944265,1747159871811,-400.0,0.00011506,2]
[360944266,1747159871822,-680.61,0.00011506,2]
[360944267,1747159871833,-4665.34,0.00011506,2]
[360944268,1747159871843,-400.0,0.00011506,2]
[360944269,1747159871854,-1314.16,0.00011506,2]
[360944270,1747159871865,-4183.88,0.00011506,2]
[360944271,1747159871875,-400.0,0.00011506,2]
[360944272,1747159871886,-400.0,0.00011506,2]
[360944273,1747159871897,-786.38,0.00011506,2]
[360944274,1747159871908,-400.0,0.00011506,2]
[360944275,1747159871919,-547.25,0.00011506,2]
[360944276,1747159871930,-579.54,0.00011506,2]
[360944277,1747159871941,-2046.23,0.00011506,2]
[360944278,1747159871951,-1255.33,0.00011506,2]
[360944279,1747159871962,-577.34,0.00011506,2]
[360944280,1747159871973,-9519.31,0.00011506,2]
[360944281,1747159871984,-834.73,0.00011506,2]
[360944282,1747159871995,-400.0,0.00011506,2]
[360944283,1747159872007,-400.0,0.00011506,2]
[360944284,1747159872019,-1346.7,0.00011506,2]
[360944285,1747159872030,-2754.3,0.00011506,2]
[360944286,1747159872042,-10256.28,0.00011506,2]
[360944287,1747159872052,-400.0,0.00011506,2]
[360944288,1747159872067,-487.25,0.00011506,2]
[360944289,1747159872083,-400.0,0.00011506,2]
[360944290,1747159872097,-400.0,0.00011506,2]
[360944291,1747159872110,-2145.85,0.00011506,2]
[360944292,1747159872125,-778.75,0.00011506,2]
[360944293,1747159872140,-1086.29,0.00011506,2]
[360944294,1747159872158,-712.61,0.00011506,2]
[360944295,1747159872171,-400.0,0.00011506,2]
[360944296,1747159872183,-1146.85,0.00011506,2]
[360944297,1747159872198,-400.0,0.00011506,2]
[360944298,1747159872214,-427.04,0.00011506,2]
[360944299,1747159872229,-1787.73,0.00011506,2]
[360944300,1747159872245,-587.09,0.00011506,2]
[360944301,1747159872261,-400.0,0.00011506,2]
[360944302,1747159872276,-2676.84,0.00011506,2]
[360944303,1747159872292,-936.8,0.00011506,2]
[360944304,1747159872306,-538.65,0.00011506,2]
[360944305,1747159872320,-570.54,0.00011506,2]
[360944306,1747159872335,-671.91,0.00011506,2]
[360944307,1747159872350,-400.0,0.00011506,2]
[360944308,1747159872363,-1004.59,0.00011506,2]
[360944309,1747159872376,-583.74,0.00011506,2]
[360944310,1747159872388,-400.0,0.00011506,2]
[360944311,1747159872403,-400.0,0.00011506,2]
[360944312,1747159872418,-628.15,0.00011506,2]
[360944313,1747159872430,-409.42,0.00011506,2]
[360944314,1747159872442,-400.0,0.00011506,2]
[360944315,1747159872457,-10626.02,0.00011506,2]
[360944316,1747159872471,-400.0,0.00011506,2]
[360944317,1747159872483,-515.12,0.00011506,2]
[360944318,1747159872497,-6049.69,0.00011506,2]
[360944319,1747159872510,-182.26930836,0.00011506,2]
[360944320,1747159872523,-1033.11,0.00011506,2]
[360944321,1747159872537,-400.0,0.00011506,2]
[360944322,1747159872551,-400.0,0.00011506,2]
[360944323,1747159872564,-437.19,0.00011506,2]
[360944324,1747159872577,-569.55,0.00011506,2]
[360944325,1747159872589,-467.47,0.00011506,2]
[360944326,1747159872602,-2264.96,0.00011506,2]
[360944327,1747159872614,-795.31,0.00011506,2]
[360944328,1747159872628,-400.0,0.00011506,2]
[360944329,1747159872641,-405.13,0.00011506,2]
[360944330,1747159872654,-1277.12,0.00011506,2]
[360944331,1747159872667,-400.0,0.00011506,2]
[360944332,1747159872680,-1585.22,0.00011506,2]
[360944333,1747159872693,-400.0,0.00011506,2]
[360944334,1747159872706,-400.0,0.00011506,2]
[360944335,1747159872719,-10483.18,0.00011506,2]
[360944336,1747159872732,-400.0,0.00011506,2]
[360944337,1747159872744,-843.23,0.00011506,2]
[360944338,1747159872757,-1106.58,0.00011506,2]
[360944339,1747159872771,-400.0,0.00011506,2]
[360944340,1747159872785,-413.28,0.00011506,2]
[360944341,1747159872799,-400.0,0.00011506,2]
[360944342,1747159872812,-400.0,0.00011506,2]
[360944343,1747159872826,-1973.13,0.00011506,2]
[360944344,1747159872840,-400.0,0.00011506,2]
[360944345,1747159872853,-400.0,0.00011506,2]
[360944346,1747159872866,-565.33,0.00011506,2]
[360944347,1747159872879,-1087.57,0.00011506,2]
[360944348,1747159872893,-400.0,0.00011506,2]
[360944349,1747159872905,-2020.68,0.00011506,2]
[360944350,1747159872918,-400.0,0.00011506,2]
[360944351,1747159872931,-400.0,0.00011506,2]
[360944352,1747159872944,-686.06,0.00011506,2]
[360944353,1747159872958,-400.0,0.00011506,2]
[360944354,1747159872972,-400.0,0.00011506,2]
[360944355,1747159872986,-400.0,0.00011506,2]
[360944356,1747159872999,-400.0,0.00011506,2]
[360944357,1747159873013,-2493.43,0.00011506,2]
[360944358,1747159873026,-483.53,0.00011506,2]
[360944359,1747159873039,-400.0,0.00011506,2]
[360944360,1747159873053,-400.0,0.00011506,2]
[360944361,1747159873066,-523.64,0.00011506,2]
[360944362,1747159873079,-2179.19,0.00011506,2]
[360944363,1747159873093,-408.08460597,0.00011506,2]
[360944364,1747159873106,-933.31,0.00011506,2]
[360944365,1747159873119,-1454.44,0.00011506,2]
[360944366,1747159873133,-495.63,0.00011506,2]
[360944367,1747159873146,-448.16,0.00011506,2]
[360944368,1747159873163,-669.67,0.00011506,2]
[360944369,1747159873182,-407.59,0.00011506,2]
[360944370,1747159873196,-2557.8,0.00011506,2]
[360944371,1747159873209,-733.19,0.00011506,2]
[360944372,1747159873223,-1323.75,0.00011506,2]
[360944373,1747159873236,-1387.03,0.00011506,2]
[360944374,1747159873249,-101544.96,0.00011506,2]
[360944375,1747159873263,-639.94,0.00011506,2]
[360944376,1747159873276,-1956.5,0.00011506,2]
[360944377,1747159873289,-400.0,0.00011506,2]
[360944378,1747159873304,-400.0,0.00011506,2]
[360944379,1747159873323,-447.02,0.00011506,2]
[360944380,1747159873337,-400.0,0.00011506,2]
[360944381,1747159873351,-400.0,0.00011506,2]
[360944382,1747159873363,-400.0,0.00011506,2]
[360944383,1747159873376,-2181.62,0.00011506,2]
[360944384,1747159873390,-279.18517322,0.00011506,2]
[360944385,1747159873403,-707.87,0.00011506,2]
[360944386,1747159873417,-946.15,0.00011506,2]
[360944387,1747159873431,-809.14,0.00011506,2]
[360944388,1747159873444,-676.8,0.00011506,2]
[360944389,1747159873459,-492.65,0.00011506,2]
[360944390,1747159873473,-637.14,0.00011506,2]
[360944391,1747159873486,-400.0,0.00011506,2]
[360944392,1747159873500,-400.0,0.00011506,2]
[360944393,1747159873513,-2751.0,0.00011507,2]
[360944394,1747159873526,-151.0,0.00011539,2]
[360944395,1747159873539,-151.0,0.00011541,2]
[360944396,1747159873552,-242.115667,0.00011541,2]
[360944397,1747159873565,-4071.95,0.00011541,2]
[360944398,1747159873578,-1075.0,0.00011559,2]
[360944399,1747159873591,-150.0,0.00011649,2]
[360944400,1747159873604,-166.9,0.00011674,2]
[360944401,1747159873618,-1000.0,0.0001177,2]
[360944402,1747159873630,-500.0,0.0001177,2]
[360944403,1747159873644,-500.0,0.0001177,2]
[360944404,1747159873656,-500.0,0.0001177,2]
[360944405,1747159873670,-500.0,0.0001177,2]
[360944406,1747159873682,-500.0,0.0001177,2]
[360944407,1747159873696,-502.0,0.0001177,2]
[360944408,1747159873710,-400.0,0.0001178,2]
[360944409,1747159873724,-2722.32,0.0001178,2]
[360944410,1747159873737,-151.0,0.0001178,2]
[360944411,1747159873751,-151.0,0.0001178,2]
[360944412,1747159873765,-151.0,0.0001178,2]
[360944413,1747159873778,-242.116731,0.0001178,2]
[360944414,1747159873791,-242.116731,0.0001178,2]
[360944415,1747159873804,-151.0,0.0001178,2]
[360944416,1747159873817,-151.0,0.0001178,2]
[360944417,1747159873830,-151.0,0.0001178,2]
[360944418,1747159873843,-151.0,0.0001178,2]
[360944419,1747159873857,-151.0,0.0001178,2]
[360944420,1747159873870,-181.754089,0.0001178,2]
[360944421,1747159873883,-151.0,0.0001178,2]
[360944422,1747159873896,-228.765933,0.0001178,2]
[360944423,1747159873909,-202.854913,0.0001178,2]
[360944424,1747159873922,-520.78,0.0001178,2]
[360944425,1747159873934,-916.93,0.0001178,2]
[360944426,1747159873945,-506.41,0.0001178,2]
[360944427,1747159873957,-694.78,0.0001178,2]
[360944428,1747159873969,-400.0,0.0001178,2]
[360944429,1747159873981,-400.0,0.0001178,2]
[360944430,1747159873995,-400.0,0.0001178,2]
[360944431,1747159874007,-400.0,0.0001178,2]
[360944432,1747159874018,-400.0,0.0001178,2]
[360944433,1747159874030,-400.0,0.0001178,2]
[360944434,1747159874042,-400.0,0.0001178,2]
[360944435,1747159874054,-400.0,0.0001178,2]
[360944436,1747159874068,-400.0,0.0001178,2]
[360944437,1747159874080,-626.45,0.0001178,2]
[360944438,1747159874092,-400.0,0.0001178,2]
[360944439,1747159874102,-626.11,0.0001178,2]
[360944440,1747159874112,-400.0,0.0001178,2]
[360944441,1747159874123,-194.56706315,0.0001178,2]
[360944442,1747159874135,-400.0,0.0001178,2]
[360944443,1747159874146,-463.34,0.0001178,2]
[360944444,1747159874161,-488.25,0.0001178,2]
[360944445,1747159874173,-400.0,0.0001178,2]
[360944446,1747159874185,-400.0,0.0001178,2]
[360944447,1747159874196,-400.0,0.0001178,2]
[360944448,1747159874209,-400.0,0.0001178,2]
[360944449,1747159874220,-400.0,0.0001178,2]
[360944450,1747159874232,-400.0,0.0001178,2]
[360944451,1747159874245,-400.0,0.0001178,2]
[360944452,1747159874256,-394.63654,0.0001178,2]
[360944453,1747159874269,-657.34,0.0001178,2]
[360944454,1747159874282,-400.0,0.0001178,2]
[360944455,1747159874295,-394.63654,0.0001178,2]
[360944456,1747159874307,-441.68,0.0001178,2]
[360944457,1747159874319,-400.0,0.0001178,2]
[360944458,1747159874333,-645.08,0.0001178,2]
[360944459,1747159874347,-400.0,0.0001178,2]
[360944460,1747159874360,-530.14,0.0001178,2]
[360944461,1747159874373,-400.0,0.0001178,2]
[360944462,1747159874732,-400.0,0.0001178,2]
[360944463,1747159874756,-400.0,0.0001178,2]
[360944464,1747159874766,-352.75445753,0.0001178,2]
[360944465,1747159874775,-400.0,0.0001178,2]
[360944466,1747159874785,-400.0,0.0001178,2]
[360944467,1747159874795,-400.0,0.0001178,2]
[360944468,1747159874805,-852.22,0.0001178,2]
[360944469,1747159874815,-400.0,0.0001178,2]
[360944470,1747159874825,-400.0,0.0001178,2]
[360944471,1747159874835,-400.0,0.0001178,2]
[360944472,1747159874844,-400.0,0.0001178,2]
[360944473,1747159874854,-820.71,0.0001178,2]
[360944474,1747159874864,-400.0,0.0001178,2]
[360944475,1747159874874,-458.48689821,0.0001178,2]
[360944476,1747159874883,-151.0,0.0001178,2]
[360944477,1747159874893,-400.0,0.0001178,2]
[360944478,1747159874903,-400.0,0.0001178,2]
[360944479,1747159874913,-400.0,0.0001178,2]
[360944480,1747159874923,-400.0,0.0001178,2]
[360944481,1747159874933,-400.0,0.0001178,2]
[360944482,1747159874943,-400.0,0.0001178,2]
[360944483,1747159874952,-621.83,0.0001178,2]
[360944484,1747159874962,-400.0,0.0001178,2]
[360944485,1747159874972,-400.0,0.0001178,2]
[360944486,1747159874982,-400.0,0.0001178,2]
[360944487,1747159874991,-400.0,0.0001178,2]
[360944488,1747159875002,-478.47,0.0001178,2]
[360944489,1747159875011,-400.0,0.0001178,2]
[360944490,1747159875020,-404.78,0.0001178,2]
[360944491,1747159875030,-400.0,0.0001178,2]
[360944492,1747159875039,-400.0,0.0001178,2]
[360944493,1747159875049,-400.0,0.0001178,2]
[360944494,1747159875058,-400.0,0.0001178,2]
[360944495,1747159875068,-1162.05,0.0001178,2]
[360944496,1747159875077,-400.0,0.0001178,2]
[360944497,1747159875087,-1079.27,0.0001178,2]
[360944498,1747159875096,-577.59,0.0001178,2]
[360944499,1747159875105,-426.15,0.0001178,2]
[360944500,1747159875115,-400.0,0.0001178,2]
[360944501,1747159875125,-3487.68,0.0001178,2]
[360944502,1747159875135,-400.0,0.0001178,2]
[360944503,1747159875145,-151.0,0.0001178,2]
[360944504,1747159875155,-169.89388,0.0001178,2]
[360944505,1747159875168,-400.0,0.0001178,2]
[360944506,1747159875178,-400.0,0.0001178,2]
[360944507,1747159875188,-400.0,0.0001178,2]
[360944508,1747159875197,-400.0,0.0001178,2]
[360944509,1747159875207,-151.0,0.0001178,2]
[360944510,1747159875216,-169.89388,0.0001178,2]
[360944511,1747159875226,-400.0,0.0001178,2]
[360944512,1747159875236,-1738.21,0.0001178,2]
[360944513,1747159875246,-450.30012155,0.0001178,2]
[360944514,1747159875256,-459.19,0.0001178,2]
[360944515,1747159875265,-302.552997,0.0001178,2]
[360944516,1747159875275,-151.0,0.0001178,2]
[360944517,1747159875284,-400.0,0.0001178,2]
[360944518,1747159875294,-444.36,0.0001178,2]
[360944519,1747159875303,-302.552997,0.0001178,2]
[360944520,1747159875313,-400.0,0.0001178,2]
[360944521,1747159875322,-400.0,0.0001178,2]
[360944522,1747159875332,-615.27,0.0001178,2]
[360944523,1747159875342,-400.0,0.0001178,2]
[360944524,1747159875351,-400.0,0.0001178,2]
[360944525,1747159875361,-420.8,0.0001178,2]
[360944526,1747159875370,-400.0,0.0001178,2]
[360944527,1747159875380,-1176.5,0.0001178,2]
[360944528,1747159875390,-1437.22,0.0001178,2]
[360944529,1747159875399,-400.0,0.0001178,2]
[360944530,1747159875409,-652.56,0.0001178,2]
[360944531,1747159875418,-488.24,0.0001178,2]
[360944532,1747159875428,-400.0,0.0001178,2]
[360944533,1747159875437,-1273.02,0.0001178,2]
[360944534,1747159875447,-400.0,0.0001178,2]
[360944535,1747159875456,-400.0,0.0001178,2]
[360944536,1747159875466,-801.33,0.0001178,2]
[360944537,1747159875475,-400.0,0.0001178,2]
[360944538,1747159875484,-400.0,0.0001178,2]
[360944539,1747159875494,-788.97,0.0001178,2]
[360944540,1747159875504,-414.37,0.0001178,2]
[360944541,1747159875513,-542.34,0.0001178,2]
[360944542,1747159875523,-400.0,0.0001178,2]
[360944543,1747159875532,-400.0,0.0001178,2]
[360944544,1747159875541,-449.97,0.0001178,2]
[360944545,1747159875551,-426.3,0.0001178,2]
[360944546,1747159875560,-400.0,0.0001178,2]
[360944547,1747159875569,-400.0,0.0001178,2]
[360944548,1747159875578,-372.683801,0.0001178,2]
[360944549,1747159875588,-400.0,0.0001178,2]
[360944550,1747159875597,-372.683801,0.0001178,2]
[360944551,1747159875607,-151.0,0.0001178,2]
[360944552,1747159875616,-1871.8,0.0001178,2]
[360944553,1747159875626,-400.0,0.0001178,2]
[360944554,1747159875635,-475.68,0.0001178,2]
[360944555,1747159875645,-1359.59,0.0001178,2]
[360944556,1747159875654,-472.81,0.0001178,2]
[360944557,1747159875663,-400.0,0.0001178,2]
[360944558,1747159875673,-400.0,0.0001178,2]
[360944559,1747159875683,-323.301614,0.0001178,2]
[360944560,1747159875692,-539.11,0.0001178,2]
[360944561,1747159875702,-323.301614,0.0001178,2]
[360944562,1747159875711,-400.0,0.0001178,2]
[360944563,1747159875720,-400.0,0.0001178,2]